bitfinex/quotes_SOLUSD_20240913
["timestamp","ask_amount","ask_price","bid_price","bid_amount"]
[1726262352914,0.37647,139.18,139.15,0.2614596]
[1726262353137,6.3864,139.19,139.15,0.2614596]
[1726262355614,15.2676,139.22,139.17,12.50900042]
[1726262356519,15.2676,139.22,139.16,12.50900042]
[1726262357439,15.2676,139.22,139.15,0.2614596]
[1726262357645,15.2676,139.22,139.15,24.0383436]
[1726262358019,0.37647,139.21,139.15,0.2614596]
[1726262358237,0.25098,139.21,139.15,0.2614596]
[1726262358416,0.37647,139.21,139.15,0.2614596]
[1726262367280,31.337254,139.21,139.15,0.2614596]
[1726262367663,0.12549,139.19,139.15,0.2614596]
[1726262367863,0.37647,139.19,139.15,0.2614596]
[1726262376783,15.2676,139.22,139.15,0.2614596]
[1726262376991,15.2676,139.22,139.16,12.50900042]
[1726262379372,15.2676,139.22,139.15,12.77046002]
[1726262380195,15.2676,139.22,139.15,0.2614596]
[1726262380394,0.12549,139.21,139.15,12.77046002]
[1726262380893,6.3236,139.23,139.18,12.50900042]
[1726262381103,15.6527,139.25,139.2,12.50900042]
[1726262381393,6.6513,139.28,139.23,12.50900042]
[1726262381579,6.6513,139.28,139.22,36.28588442]
[1726262382094,6.6513,139.28,139.23,12.50900042]
[1726262382299,15.9141596,139.29,139.23,12.50900042]
[1726262383095,0.2614596,139.29,139.23,12.50900042]
[1726262383798,0.2614596,139.29,139.22,36.28588442]
[1726262385184,0.2614596,139.29,139.22,23.776884]
[1726262387492,0.37647,139.28,139.2,12.50900042]
[1726262388485,0.2614596,139.29,139.21,12.50900042]
[1726262391328,0.2614596,139.29,139.23,12.50900042]
[1726262391806,0.2614596,139.29,139.22,12.50900042]
[1726262392300,0.2614596,139.29,139.19,20.12549]
[1726262392507,0.2614596,139.29,139.22,12.50900042]
[1726262392823,0.2614596,139.29,139.23,23.776884]
[1726262392998,0.2614596,139.29,139.22,12.50900042]
[1726262394704,15.6885,139.28,139.21,12.50900042]
[1726262395429,15.6885,139.28,139.2,12.50900042]
[1726262395590,15.6885,139.28,139.21,12.50900042]
[1726262396507,15.6885,139.28,139.22,12.50900042]
[1726262396710,15.6885,139.28,139.23,12.50900042]
[1726262398112,15.6885,139.28,139.24,12.50900042]
[1726262398305,0.2614596,139.29,139.24,12.50900042]
[1726262400398,0.2614596,139.29,139.21,20.0]
[1726262400596,0.2614596,139.29,139.23,12.50900042]
[1726262402114,0.2614596,139.29,139.24,12.50900042]
[1726262404322,0.2614596,139.29,139.21,0.12549]
[1726262404323,0.2614596,139.29,139.25,12.50900042]
[1726262414624,0.2614596,139.29,139.24,12.50900042]
[1726262415215,0.2614596,139.29,139.25,23.776884]
[1726262423541,0.12549,139.28,139.17,16.5142]
[1726262423720,0.25098,139.28,139.21,12.50900042]
[1726262426416,0.2614596,139.29,139.26,12.50900042]
[1726262429348,0.2614596,139.29,139.27,12.50900042]
[1726262430434,0.2614596,139.29,139.26,12.50900042]
[1726262432129,0.2614596,139.29,139.27,23.776884]
[1726262432346,0.2614596,139.29,139.27,36.28588442]
[1726262433741,0.2614596,139.29,139.23,0.25098]
[1726262433943,0.2614596,139.29,139.24,12.50900042]
[1726262434152,0.2614596,139.29,139.22,16.4381]
[1726262434328,0.2614596,139.29,139.24,12.50900042]
[1726262436655,0.2614596,139.29,139.25,23.776884]
[1726262436950,0.2614596,139.29,139.23,36.28588442]
[1726262440651,0.2614596,139.29,139.24,12.50900042]
[1726262442534,0.25098,139.28,139.19,16.1328]
[1726262442732,0.2614596,139.29,139.21,12.50900042]
[1726262442931,0.2614596,139.29,139.19,16.1328]
[1726262442932,0.2614596,139.29,139.22,12.50900042]
[1726262443457,0.2614596,139.29,139.23,12.50900042]
[1726262443657,0.2614596,139.29,139.25,36.28588442]
[1726262444539,0.2614596,139.29,139.26,12.50900042]
[1726262445651,0.2614596,139.29,139.27,23.776884]
[1726262450639,0.2614596,139.29,139.26,12.50900042]
[1726262457060,0.2614596,139.29,139.27,12.50900042]
[1726262457444,0.2614596,139.29,139.26,12.50900042]
[1726262462452,0.2614596,139.29,139.27,24.027864]
[1726262462850,0.2614596,139.29,139.28,12.50900042]
[1726262463246,0.2614596,139.29,139.28,36.28588442]
[1726262463643,0.2614596,139.29,139.28,36.41137442]
[1726262463870,0.2614596,139.29,139.28,36.66235442]
[1726262464366,0.2614596,139.29,139.28,36.28588442]
[1726262464668,0.2614596,139.29,139.28,36.53686442]
[1726262464862,0.2614596,139.29,139.28,36.66235442]
[1726262465070,0.2614596,139.29,139.28,56.66235442]
[1726262465277,0.1,139.3,139.28,56.66235442]
[1726262465278,0.1,139.3,139.29,59.768064]
[1726262465501,0.2614596,139.33,139.32,56.53686442]
[1726262465788,0.2614596,139.38,139.33,44.027864]
[1726262465973,0.2614596,139.38,139.35,0.25098]
[1726262466282,0.2614596,139.38,139.34,0.12549]
[1726262466571,0.2614596,139.38,139.37,36.28588442]
[1726262467864,0.2614596,139.38,139.33,20.0]
[1726262468070,0.2614596,139.38,139.35,12.50900042]
[1726262468374,0.2614596,139.38,139.34,12.50900042]
[1726262468590,0.2614596,139.38,139.35,12.50900042]
[1726262469768,0.2614596,139.38,139.36,12.50900042]
[1726262470755,0.2614596,139.38,139.35,12.50900042]
[1726262472582,0.2614596,139.38,139.34,23.776884]
[1726262473281,0.2614596,139.38,139.36,36.28588442]
[1726262473668,0.2614596,139.38,139.37,25.21156663]
[1726262473862,0.2614596,139.38,139.37,37.72056705]
[1726262474668,0.2614596,139.38,139.37,36.28588442]
[1726262474968,0.2614596,139.38,139.36,1.43396194]
[1726262475176,0.2614596,139.38,139.36,13.94296236]
[1726262475375,0.2614596,139.38,139.37,1.43385904]
[1726262475857,0.2614596,139.38,139.36,12.50900042]
[1726262476201,0.2614596,139.38,139.36,23.776884]
[1726262476485,0.2614596,139.38,139.36,1.43412439]
[1726262477992,0.2614596,139.38,139.36,13.94312481]
[1726262478696,0.2614596,139.38,139.36,1.43412439]
[1726262480780,0.2614596,139.38,139.36,36.28588442]
[1726262481090,0.2614596,139.38,139.37,1.43459776]
[1726262481466,0.2614596,139.38,139.36,36.28588442]
[1726262481467,0.17766191,139.41,139.36,36.28588442]
[1726262482190,0.17766191,139.41,139.37,1.43449392]
[1726262482493,0.17766191,139.41,139.36,36.28588442]
[1726262484993,0.17766191,139.41,139.36,23.776884]
[1726262485209,15.84209,139.4,139.32,12.50900042]
[1726262485495,6.3879,139.39,139.32,12.50900042]
[1726262488278,13.5622,139.39,139.32,12.50900042]
[1726262488877,13.5622,139.39,139.31,12.50900042]
[1726262490573,6.3879,139.39,139.31,12.50900042]
[1726262490799,6.3879,139.39,139.32,23.776884]
[1726262491795,13.5621,139.39,139.31,12.50900042]
[1726262492889,6.3879,139.39,139.32,23.776884]
[1726262493898,0.12549,139.38,139.31,12.50900042]
[1726262495691,0.25098,139.37,139.28,9.1758944]
[1726262495901,7.42648,139.37,139.28,21.68489482]
[1726262496106,7.42648,139.37,139.29,12.50900042]
[1726262496279,0.25098,139.37,139.29,12.50900042]
[1726262496480,0.12549,139.37,139.3,12.50900042]
[1726262496676,7.30019,139.38,139.3,12.50900042]
[1726262498114,7.30019,139.38,139.31,12.50900042]
[1726262498406,7.30019,139.38,139.3,12.50900042]
[1726262498577,7.1752,139.37,139.3,12.50900042]
[1726262498778,7.30019,139.38,139.29,36.28588442]
[1726262498978,7.30019,139.38,139.3,12.50900042]
[1726262499198,0.12549,139.38,139.31,12.50900042]
[1726262500905,0.12549,139.38,139.3,20.0]
[1726262501210,0.12549,139.38,139.3,12.50900042]
[1726262502012,7.30009,139.38,139.3,12.50900042]
[1726262502314,7.30009,139.38,139.29,23.776884]
[1726262502516,7.42628,139.37,139.28,9.1758944]
[1726262502722,0.12549,139.36,139.29,12.50900042]
[1726262503418,0.12549,139.36,139.27,0.2614596]
[1726262503419,15.3176,139.35,139.27,0.2614596]
[1726262503722,15.3176,139.35,139.27,12.77046002]
[1726262504314,15.3176,139.35,139.27,0.2614596]
[1726262504622,15.3176,139.35,139.3,12.50900042]
[1726262504802,15.3176,139.35,139.31,12.50900042]
[1726262505218,13.562,139.39,139.32,23.776884]
[1726262505219,15.3176,139.38,139.32,23.776884]
[1726262505608,15.3176,139.38,139.31,12.50900042]
[1726262505802,15.3176,139.38,139.3,12.50900042]
[1726262507011,22.4925,139.38,139.3,12.50900042]
[1726262507208,0.12549,139.37,139.3,12.50900042]
[1726262508027,15.3176,139.38,139.31,23.776884]
[1726262508196,15.3176,139.38,139.31,36.28588442]
[1726262508402,15.3176,139.38,139.31,12.50900042]
[1726262508716,15.3176,139.38,139.27,0.2614596]
[1726262508717,15.3176,139.38,139.3,12.50900042]
[1726262510709,0.12549,139.37,139.29,12.50900042]
[1726262511021,0.25098,139.37,139.29,12.50900042]
[1726262513126,7.42618,139.37,139.29,12.50900042]
[1726262515824,6.6233,139.35,139.27,36.54734402]
[1726262517014,16.81198,139.34,139.27,0.2614596]
[1726262517215,16.561,139.34,139.27,0.2614596]
[1726262517512,16.561,139.34,139.29,12.50900042]
[1726262517715,16.561,139.34,139.27,0.2614596]
[1726262517921,16.561,139.34,139.28,12.50900042]
[1726262525235,16.561,139.34,139.3,12.50900042]
[1726262525408,6.6233,139.35,139.3,12.50900042]
[1726262526229,6.6233,139.35,139.31,0.57610702]
[1726262526426,6.6233,139.35,139.3,12.50900042]
[1726262526808,15.8446,139.38,139.31,13.08498338]
[1726262527147,0.17766191,139.41,139.33,12.50900042]
[1726262527507,0.17766191,139.41,139.32,12.50900042]
[1726262528037,7.35086191,139.41,139.32,12.50900042]
[1726262528408,0.25098,139.4,139.32,12.50900042]
[1726262529341,0.12549,139.39,139.32,12.50900042]
[1726262530921,0.25098,139.4,139.32,12.50900042]
[1726262533828,6.4173,139.37,139.28,20.25098]
[1726262534026,6.4173,139.37,139.29,12.50900042]
[1726262534231,0.12549,139.36,139.29,12.50900042]
[1726262535628,6.4173,139.37,139.27,24.0383436]
[1726262535629,15.7887,139.35,139.27,24.0383436]
[1726262535839,15.7887,139.35,139.29,12.50900042]
[1726262543050,15.7887,139.35,139.3,36.28588442]
[1726262543238,15.7887,139.35,139.3,12.50900042]
[1726262543842,15.7887,139.35,139.29,12.50900042]
[1726262544025,15.7887,139.35,139.3,23.776884]
[1726262545229,15.7887,139.35,139.27,0.2614596]
[1726262545442,15.7887,139.35,139.29,23.776884]
[1726262545835,15.75141123,139.35,139.29,36.28588442]
[1726262546145,15.75141123,139.35,139.29,23.776884]
[1726262547050,15.75141123,139.35,139.28,12.50900042]
[1726262549343,15.75141123,139.35,139.29,23.776884]
[1726262549534,15.75141123,139.35,139.29,36.28588442]
[1726262549854,15.75141123,139.35,139.28,12.50900042]
[1726262550735,15.75141123,139.35,139.29,23.776884]
[1726262551232,15.75141123,139.35,139.29,36.28588442]
[1726262551434,15.75141123,139.35,139.3,12.50900042]
[1726262552458,15.75141123,139.35,139.29,36.28588442]
[1726262557952,15.75141123,139.35,139.31,12.50900042]
[1726262558159,15.75141123,139.35,139.32,23.776884]
[1726262562261,15.75141123,139.35,139.31,23.776884]
[1726262563971,6.4173,139.37,139.33,12.50900042]
[1726262564764,6.4173,139.37,139.32,1.04723432]
[1726262564765,6.4173,139.37,139.32,13.55623474]
[1726262565758,6.4173,139.37,139.32,12.50900042]
[1726262568165,6.4173,139.37,139.33,23.776884]
[1726262569584,6.4173,139.37,139.32,12.50900042]
[1726262569882,6.4173,139.37,139.31,12.50900042]
[1726262570096,6.4173,139.37,139.32,23.776884]
[1726262571469,6.4173,139.37,139.31,12.50900042]
[1726262571669,6.4173,139.37,139.31,23.776884]
[1726262573483,6.4173,139.37,139.32,0.25098]
[1726262575459,6.4173,139.37,139.31,36.28588442]
[1726262575781,6.4173,139.37,139.32,12.50900042]
[1726262577480,6.4173,139.37,139.31,36.28588442]
[1726262579391,6.4173,139.37,139.31,23.776884]
[1726262579587,6.4173,139.37,139.32,12.50900042]
[1726262582295,6.4173,139.37,139.31,36.28588442]
[1726262583176,6.4173,139.37,139.31,23.776884]
[1726262583375,6.4173,139.37,139.31,36.28588442]
[1726262585892,6.4173,139.37,139.31,23.776884]
[1726262586090,6.4173,139.37,139.31,36.28588442]
[1726262604110,6.4173,139.37,139.33,12.50900042]
[1726262605730,15.7763,139.36,139.27,7.76121855]
[1726262606012,15.7763,139.36,139.29,12.50900042]
[1726262606218,0.12549,139.35,139.27,0.2614596]
[1726262606421,0.12549,139.35,139.29,12.50900042]
[1726262607911,15.7763,139.36,139.29,12.50900042]
[1726262609121,6.3531,139.34,139.27,0.2614596]
[1726262609321,6.3531,139.34,139.28,12.50900042]
[1726262610311,6.3531,139.34,139.29,12.50900042]
[1726262611197,6.3531,139.34,139.3,12.50900042]
[1726262612499,6.3531,139.34,139.28,0.12549]
[1726262612706,6.3531,139.34,139.29,12.50900042]
[1726262613101,6.3531,139.34,139.3,12.50900042]
[1726262617626,6.3531,139.34,139.27,20.2614596]
[1726262617833,6.3531,139.34,139.29,12.50900042]
[1726262618330,6.3531,139.34,139.3,12.50900042]
[1726262621653,6.3531,139.34,139.29,12.50900042]
[1726262624030,6.3531,139.34,139.28,23.776884]
[1726262624031,6.3531,139.34,139.28,36.28588442]
[1726262624241,6.3531,139.34,139.29,12.50900042]
[1726262626619,6.3531,139.34,139.28,23.776884]
[1726262626820,6.3531,139.34,139.28,12.50900042]
[1726262627640,6.3531,139.34,139.27,12.77046002]
[1726262632721,6.3531,139.34,139.27,24.0383436]
[1726262632918,6.3531,139.34,139.27,36.54734402]
[1726262637553,6.3531,139.34,139.28,12.50900042]
[1726262640946,6.3531,139.34,139.27,24.0383436]
[1726262641133,6.3531,139.34,139.27,36.54734402]
[1726262643339,6.3531,139.34,139.28,12.50900042]
[1726262643541,6.3531,139.34,139.27,24.0383436]
[1726262644056,6.3531,139.34,139.3,12.50900042]
[1726262648735,6.3531,139.34,139.29,12.50900042]
[1726262649259,6.3531,139.34,139.27,24.0383436]
[1726262649438,6.3531,139.34,139.28,12.50900042]
[1726262649757,6.3531,139.34,139.27,24.0383436]
[1726262649939,6.3531,139.34,139.28,12.50900042]
[1726262650646,6.3531,139.34,139.27,24.0383436]
[1726262650846,6.3531,139.34,139.28,12.50900042]
[1726262652258,6.3531,139.34,139.29,36.28588442]
[1726262652554,15.7763,139.36,139.32,12.50900042]
[1726262653062,15.7763,139.36,139.33,23.776884]
[1726262653656,15.7763,139.36,139.32,12.50900042]
[1726262655361,15.7763,139.36,139.28,0.25098]
[1726262655566,15.7763,139.36,139.31,12.50900042]
[1726262655938,15.7763,139.36,139.32,12.50900042]
[1726262657152,15.7763,139.36,139.3,23.776884]
[1726262657354,15.7763,139.36,139.32,12.50900042]
[1726262661169,15.7763,139.36,139.33,12.50900042]
[1726262661466,15.7763,139.36,139.32,12.50900042]
[1726262664369,15.7763,139.36,139.29,20.0]
[1726262664672,15.7763,139.36,139.31,12.50900042]
[1726262665756,15.7763,139.36,139.33,12.50900042]
[1726262665954,15.7763,139.36,139.34,12.50900042]
[1726262668856,0.12549,139.35,139.27,0.2614596]
[1726262669057,24.153354,139.35,139.27,0.2614596]
[1726262669266,16.67148,139.33,139.27,0.2614596]
[1726262669480,16.4205,139.33,139.27,0.2614596]
[1726262671895,0.25098,139.32,139.27,0.2614596]
[1726262672982,16.4205,139.33,139.27,0.2614596]
[1726262673374,16.4205,139.33,139.27,12.77046002]
[1726262674470,16.4205,139.33,139.27,0.2614596]
[1726262674677,0.25098,139.32,139.27,0.2614596]
[1726262675062,16.4205,139.33,139.27,0.2614596]
[1726262677909,16.4205,139.33,139.27,24.0383436]
[1726262678202,16.4205,139.33,139.27,12.77046002]
[1726262679178,16.4205,139.33,139.29,12.50900042]
[1726262679690,16.4205,139.33,139.3,12.50900042]
[1726262680193,16.4205,139.33,139.27,0.2614596]
[1726262680405,16.4205,139.33,139.29,12.50900042]
[1726262680984,16.4205,139.33,139.27,0.2614596]
[1726262680985,16.4205,139.33,139.28,0.25098]
[1726262681182,16.4205,139.33,139.27,24.0383436]
[1726262681395,16.4205,139.33,139.28,12.50900042]
[1726262681608,16.4205,139.33,139.29,12.50900042]
[1726262682496,16.4205,139.33,139.27,24.0383436]
[1726262682497,16.4205,139.33,139.3,12.50900042]
[1726262684403,16.4205,139.33,139.31,12.50900042]
[1726262687017,16.4205,139.33,139.3,12.50900042]
[1726262687199,16.4205,139.33,139.27,24.0383436]
[1726262687405,16.4205,139.33,139.29,12.50900042]
[1726262694415,16.4205,139.33,139.3,12.50900042]
[1726262696836,16.4205,139.33,139.27,24.0383436]
[1726262697025,16.4205,139.33,139.3,12.50900042]
[1726262700214,6.2225,139.34,139.3,12.50900042]
[1726262700415,16.4133,139.36,139.33,12.50900042]
[1726262700922,16.4133,139.4,139.35,44.027864]
[1726262701123,0.17766191,139.41,139.39,12.50900042]
[1726262701346,0.17766191,139.41,139.35,44.027864]
[1726262701638,0.17766191,139.41,139.37,12.50900042]
[1726262702347,0.17766191,139.41,139.35,12.50900042]
[1726262704121,0.17766191,139.41,139.36,12.50900042]
[1726262705540,0.17766191,139.41,139.37,12.50900042]
[1726262705837,0.17766191,139.41,139.38,12.50900042]
[1726262706041,0.17766191,139.41,139.37,12.50900042]
[1726262708937,0.17766191,139.41,139.36,12.50900042]
[1726262709241,0.17766191,139.41,139.37,12.50900042]
[1726262709444,0.17766191,139.41,139.38,12.50900042]
[1726262709634,0.17766191,139.41,139.39,12.50900042]
[1726262710852,0.17766191,139.41,139.4,12.50900042]
[1726262711565,0.17766191,139.41,139.39,12.50900042]
[1726262712135,0.17766191,139.41,139.33,20.0]
[1726262712351,0.17766191,139.41,139.35,20.0]
[1726262712546,0.17766191,139.41,139.39,12.50900042]
[1726262712766,0.17766191,139.41,139.4,12.50900042]
[1726262713665,0.17766191,139.41,139.4,36.28588442]
[1726262715239,0.17766191,139.41,139.4,36.41137442]
[1726262716348,0.17766191,139.41,139.4,36.66235442]
[1726262717059,0.17766191,139.41,139.4,56.66235442]
[1726262717268,0.2614596,139.42,139.41,59.465164]
[1726262717444,0.2614596,139.42,139.41,72.09965442]
[1726262718481,0.2614596,139.46,139.41,72.09965442]
[1726262718771,0.2614596,139.46,139.45,36.53686442]
[1726262718971,0.2614596,139.46,139.45,36.41137442]
[1726262719875,0.2614596,139.46,139.45,36.66235442]
[1726262722287,0.2614596,139.46,139.45,36.41137442]
[1726262722863,0.2614596,139.46,139.45,36.66235442]
[1726262723691,0.2614596,139.46,139.45,36.53686442]
[1726262723888,0.2614596,139.46,139.45,36.41137442]
[1726262724390,0.2614596,139.46,139.45,36.66235442]
[1726262724692,0.2614596,139.46,139.45,36.28588442]
[1726262724874,0.2614596,139.46,139.45,12.50900042]
[1726262725069,0.2614596,139.46,139.45,24.027864]
[1726262725268,0.2614596,139.46,139.45,36.53686442]
[1726262725468,0.2614596,139.46,139.45,36.66235442]
[1726262725668,0.2614596,139.46,139.45,34.16235442]
[1726262727286,0.2614596,139.46,139.45,34.03686442]
[1726262727469,0.2614596,139.46,139.45,34.16235442]
[1726262727667,0.2614596,139.46,139.45,34.41333442]
[1726262728989,15.3118596,139.55,139.45,54.41333442]
[1726262729197,15.3118596,139.55,139.49,12.50900042]
[1726262729376,15.3118596,139.55,139.49,36.66235442]
[1726262729785,15.3118596,139.55,139.49,56.66235442]
[1726262730092,15.3118596,139.55,139.5,24.027864]
[1726262730093,0.2614596,139.55,139.5,24.027864]
[1726262730397,0.2614596,139.55,139.54,36.53686442]
[1726262730604,0.2614596,139.55,139.54,36.41137442]
[1726262730888,0.2614596,139.55,139.54,12.50900042]
[1726262731092,0.2614596,139.55,139.51,0.12549]
[1726262731284,0.2614596,139.55,139.54,39.803664]
[1726262731469,10.0,139.7,139.54,39.803664]
[1726262731470,20.0,139.71,139.58,20.25098]
[1726262731669,20.0,139.71,139.59,12.50900042]
[1726262731670,0.1206542,139.61,139.59,12.50900042]
[1726262731896,0.1206542,139.61,139.57,12.50900042]
[1726262732093,0.1206542,139.61,139.55,44.027864]
[1726262732310,0.277457,139.66,139.55,44.027864]
[1726262732311,0.277457,139.66,139.59,0.12549]
[1726262732598,0.277457,139.66,139.64,12.50900042]
[1726262732777,0.277457,139.7,139.59,31.993342]
[1726262732778,0.277457,139.7,139.65,66.347164]
[1726262733090,0.277457,139.7,139.65,43.776884]
[1726262733301,0.277457,139.74,139.69,78.85616442]
[1726262733506,3.2876739,139.89,139.74,20.25098]
[1726262733671,5.66791207,139.84,139.78,12.50900042]
[1726262734180,5.66791207,139.84,139.8,12.50900042]
[1726262734703,5.66791207,139.84,139.74,20.25098]
[1726262734992,5.16791207,139.84,139.77,12.50900042]
[1726262735379,5.16791207,139.84,139.74,0.25098]
[1726262735579,5.16791207,139.84,139.73,23.902374]
[1726262735797,5.16791207,139.84,139.76,12.50900042]
[1726262736180,0.25098,139.83,139.72,19.37470666]
[1726262736607,10.0,139.82,139.7,19.37470666]
[1726262736791,0.25098,139.8,139.7,19.37470666]
[1726262736992,0.12549,139.79,139.7,19.37470666]
[1726262737204,7.1519,139.83,139.7,19.37470666]
[1726262737205,24.027864,139.82,139.7,19.37470666]
[1726262737406,7.40308,139.82,139.7,19.37470666]
[1726262737711,5.16791207,139.84,139.7,19.37470666]
[1726262737893,7.1521,139.82,139.7,19.37470666]
[1726262739211,0.12549,139.8,139.7,19.37470666]
[1726262739414,0.12549,139.79,139.7,19.37470666]
[1726262739708,0.12549,139.79,139.69,0.12549]
[1726262741011,0.25098,139.8,139.69,23.902374]
[1726262741193,0.12549,139.79,139.69,0.12549]
[1726262741806,0.12549,139.79,139.68,19.50019666]
[1726262742183,0.12549,139.79,139.68,0.12549]
[1726262742383,0.12549,139.79,139.68,19.37470666]
[1726262743292,0.12549,139.79,139.69,1.43129212]
[1726262743495,23.902374,139.79,139.68,19.37470666]
[1726262743706,0.12549,139.79,139.69,1.43074384]
[1726262745840,0.12549,139.8,139.69,1.43074384]
[1726262746314,0.12549,139.82,139.66,11.74253855]
[1726262746315,12.31941207,139.84,139.72,19.37470666]
[1726262746517,7.1517,139.83,139.73,1.43002709]
[1726262746946,7.1523,139.82,139.73,1.43002709]
[1726262747636,0.12549,139.81,139.73,1.43002709]
[1726262748012,7.40248,139.83,139.73,1.43002709]
[1726262748212,0.25098,139.82,139.73,1.43002709]
[1726262748411,7.1515,139.83,139.73,1.43002709]
[1726262748641,12.31891207,139.84,139.73,1.43002709]
[1726262749329,5.16791207,139.84,139.74,19.37470666]
[1726262749538,5.16791207,139.84,139.76,19.37470666]
[1726262749716,5.16791207,139.84,139.77,1.43042536]
[1726262750037,5.16791207,139.84,139.78,19.37470666]
[1726262750237,5.16791207,139.84,139.79,23.902374]
[1726262751020,5.16791207,139.84,139.8,19.37470666]
[1726262751925,5.16791207,139.84,139.8,0.12549]
[1726262752123,5.16791207,139.84,139.8,19.62568666]
[1726262752332,5.16791207,139.84,139.8,19.37470666]
[1726262753127,5.16791207,139.84,139.82,19.37470666]
[1726262753333,3.2876739,139.89,139.85,19.37470666]
[1726262753820,3.2876739,139.89,139.83,19.37470666]
[1726262754315,3.2876739,139.89,139.84,24.027864]
[1726262754520,3.2876739,139.89,139.85,19.37470666]
[1726262754949,3.2876739,139.89,139.87,19.37470666]
[1726262755326,0.4440921,139.91,139.88,44.153354]
[1726262755642,0.4440921,139.91,139.9,19.37470666]
[1726262755845,0.4440921,139.91,139.9,19.50019666]
[1726262756352,0.4440921,139.91,139.86,21.5141]
[1726262756644,0.4440921,139.91,139.8,21.5141]
[1726262756845,0.4440921,139.91,139.85,19.37470666]
[1726262757020,7.5916921,139.91,139.83,19.37470666]
[1726262757225,0.4440921,139.91,139.83,19.37470666]
[1726262758341,0.4440921,139.91,139.8,21.5141]
[1726262758342,30.924784,139.9,139.76,15.62533855]
[1726262758533,31.050274,139.9,139.8,19.37470666]
[1726262758740,7.1479,139.9,139.8,19.37470666]
[1726262759023,7.5914921,139.91,139.82,19.37470666]
[1726262759224,7.148,139.9,139.82,19.37470666]
[1726262759550,0.4440921,139.91,139.82,19.37470666]
[1726262759751,7.1479,139.9,139.82,19.37470666]
[1726262760051,0.4440921,139.91,139.78,30.0]
[1726262760052,7.1484,139.89,139.8,19.37470666]
[1726262760239,7.1484,139.89,139.78,60.97030222]
[1726262760555,24.2209761,139.91,139.78,30.97030222]
[1726262761052,23.902374,139.9,139.78,30.97030222]
[1726262761948,6.649,139.88,139.78,30.97030222]
[1726262763348,7.1485,139.89,139.78,30.97030222]
[1726262763849,7.1491,139.88,139.78,30.97030222]
[1726262764043,7.1482,139.9,139.79,24.027864]
[1726262764245,7.1479,139.9,139.81,30.97030222]
[1726262764627,0.4440921,139.91,139.81,30.97030222]
[1726262764846,7.5916921,139.91,139.81,30.97030222]
[1726262765537,7.5916921,139.91,139.79,24.027864]
[1726262765740,7.5916921,139.91,139.8,30.97030222]
[1726262766143,0.4440921,139.91,139.79,24.027864]
[1726262766325,7.148,139.9,139.79,24.027864]
[1726262766731,7.1485,139.89,139.79,24.027864]
[1726262767144,0.25098,139.9,139.77,23.776884]
[1726262767464,0.25098,139.9,139.72,6.4072]
[1726262767465,0.12549,139.86,139.72,6.4072]
[1726262767669,0.12549,139.86,139.72,37.37750222]
[1726262767959,7.152,139.82,139.72,6.4072]
[1726262768337,7.1515,139.83,139.72,6.4072]
[1726262768863,7.1517,139.83,139.73,1.43011749]
[1726262769036,7.1517,139.83,139.72,6.4072]
[1726262769963,7.152,139.83,139.72,6.4072]
[1726262770140,13.6897,139.84,139.73,1.43024546]
[1726262770465,7.1516,139.83,139.73,1.43024546]
[1726262770839,7.1516,139.83,139.72,6.4072]
[1726262771143,31.179964,139.82,139.72,5.9072]
[1726262771649,31.179964,139.82,139.73,1.43011438]
[1726262772262,31.179964,139.82,139.74,1.43001203]
[1726262772965,13.6897,139.84,139.73,0.25098]
[1726262773266,6.5386,139.84,139.72,5.9072]
[1726262774078,13.6896,139.84,139.73,0.25098]
[1726262774442,13.6896,139.84,139.73,24.027864]
[1726262774443,6.5386,139.84,139.73,24.027864]
[1726262775352,22.9722,139.85,139.73,24.027864]
[1726262775353,15.8217,139.85,139.74,0.12549]
[1726262777080,15.8217,139.85,139.74,1.55605013]
[1726262777463,15.3217,139.85,139.74,1.55605013]
[1726262777967,7.1504,139.86,139.75,24.027864]
[1726262778167,7.1504,139.86,139.76,1.43050008]
[1726262778556,7.1504,139.86,139.77,1.43039773]
[1726262778979,7.1504,139.86,139.74,1.55604316]
[1726262780269,7.1504,139.86,139.75,19.36853983]
[1726262780468,7.1504,139.86,139.76,1.43055349]
[1726262780673,7.1505,139.85,139.75,19.36853983]
[1726262781280,31.303354,139.87,139.75,19.36853983]
[1726262781477,7.1506,139.85,139.76,1.42985094]
[1726262783082,24.027864,139.84,139.72,5.9072]
[1726262783288,7.1531,139.8,139.72,5.9072]
[1726262783587,7.1534,139.8,139.72,5.9072]
[1726262783892,7.1536,139.79,139.7,16.4073]